Cogmind - Beta 13 @@@ ROGUE MODE // 2024.07.12 @ 02:29:02 Player: Halfie Result: Destroyed by P-60 Hacker with Shock Rifle Performance ------------- Evolutions (3) 1500 Regions Visited (4) 800 Robots Destroyed (29) 145 Value Destroyed (767) 767 Prototype IDs (2) 40 Alien Tech Used (0) 0 Bonus (0) 0 TOTAL SCORE: 3252 Bonus ------- None Cogmind --------- Core Integrity 0/700 Matter 300/300 Energy 99/100 System Corruption 3% Temperature Cool (0) Movement Core (50) Location -7/Factory Parts ------- > --- POWER (2) -------- (None) > --- PROPULSION (4) --- (None) > --- UTILITY (5) ------ (None) > --- WEAPON (2) ------- (None) > --- INVENTORY (5) ---- Deuterium Engine Deuterium Engine Aluminum Leg High-capacity Matter Pod (135) EM Pulse Cannon Peak State ------------ > --- POWER ------------ Light Nuclear Core Micro Nuclear Core > --- PROPULSION ------- Aluminum Leg Aluminum Leg Aluminum Leg Carbon-fiber Leg > --- UTILITY ---------- Improved Heat Sink Structural Scanner Improved Terrain Scanner System Shield > --- WEAPON ----------- Heavy Laser Enhanced Autogun > --- INVENTORY -------- Deuterium Engine Deuterium Engine Aluminum Leg High-capacity Matter Pod EM Pulse Cannon [Rating: 32] Favorites ----------- Power Ion Engine Engine Ion Engine Power Core Light Nuclear Core Propulsion Aluminum Leg Leg Aluminum Leg Wheel Wheel Hover Unit Backup Propulsion I Utility Seismic Detector Device Seismic Detector Storage Medium Storage Unit Processor Targeting Computer Hackware System Shield Protection Core Shielding Weapon Autogun Energy Gun Heavy Laser Energy Cannon EM Pulse Cannon Ballistic Gun Autogun Slashing Weapon Greatsword Build | -11 -10 -9 -8 -7 ------- Run | Yrd Mat Mat Mat Fac Slots Evolved 6 | . . 2 2 2 Power 1 | . . . . 1 Propulsion 2 | . . . 2 . Utility 3 | . . 2 . 1 Weapon . | . . . . . Parts Attached 65 | 7 11 8 14 25 Power 10 | 1 2 1 3 3 Engine 7 | 1 2 1 2 1 Core 3 | . . . 1 2 Reactor . | . . . . . Propulsion 20 | 2 2 2 2 12 Treads . | . . . . . Leg 11 | 2 2 . 1 6 Wheel 2 | . . 2 . . Hover 7 | . . . 1 6 Flight . | . . . . . Utility 23 | 2 5 5 5 6 Device 10 | 1 2 2 1 4 Storage 5 | 1 3 . 1 . Processor 3 | . . 1 1 1 Hackware 1 | . . . . 1 Protection 4 | . . 2 2 . Artifact . | . . . . . Weapon 12 | 2 2 . 4 4 Energy Gun 2 | . . . . 2 Energy Cannon 2 | . . . 2 . Ballistic Gun 7 | 2 2 . 2 1 Ballistic Cannon . | . . . . . Launcher . | . . . . . Special Weapon . | . . . . . Impact Weapon . | . . . . . Slashing Weapon 1 | . . . . 1 Piercing Weapon . | . . . . . Special Melee Weapon . | . . . . . Unidentified Prototypes 2 | . . . 2 . Parts Lost 21 | . . 3 3 15 Power 4 | . . 1 1 2 Propulsion 8 | . . 1 1 6 Utility 5 | . . . 1 4 Weapon 4 | . . 1 . 3 Highest Loss Streak 7 | . . 3 2 7 To Critical Strikes . | . . . . . Average Slot Usage (%) 75 | . 99 60 62 55 Engine 8 | . 14 5 7 3 Leg 16 | . 28 12 4 9 Hover 3 | . . . 5 7 Device 14 | . 14 9 18 13 Storage 6 | . 13 6 . . Processor 1 | . . 6 4 1 Protection 3 | . . 5 12 3 Energy Gun 1 | . . . . 3 Energy Cannon 2 | . . . 6 3 Ballistic Gun 13 | . 28 11 3 2 Naked Turns 100 | . . 58 . 42 Heaviest Build 52 | 13 52 21 22 24 Greatest Support 45 | 20 20 20 15 45 Greatest Overweight (x) 2 | 2 2 1 2 2 Average Overweight (x) . | . . . . . Largest Inventory Capacity 20 | 8 20 10 5 5 Average Capacity 6 | 7 9 7 5 5 Most Carried 10 | 8 10 10 5 5 Average Carried 6 | 3 8 6 3 4 Final Capacity 10 | 8 10 5 5 5 Final Carried 10 | 7 10 1 4 5 Class Distribution -------------------- 85% | Mutant 14% | Scavenger-Mutant Dominant Class ---------------- Mutant | -10/Materials Mutant | -9/Materials Mutant | -8/Materials Mutant | -7/Factory Resources | -11 -10 -9 -8 -7 ----------- Run | Yrd Mat Mat Mat Fac Matter Collected 1231 | 284 310 194 91 352 Remotely . | . . . . . Salvage Created 849 | 110 347 28 116 248 Parts 63 | 10 25 3 9 16 Haulers Intercepted . | . . . . . Recyclers Shooed . | . . . . . Parts Field Recycled . | . . . . . Retrieved Matter . | . . . . . Parts Self-Destructed . | . . . . . Prevented . | . . . . . Kills | -11 -10 -9 -8 -7 ------- Run | Yrd Mat Mat Mat Fac Combat Hostiles Destroyed 22 | . 10 2 5 5 Guns 22 | . 10 2 5 5 Classes Destroyed 8 | 2 3 . 1 2 Worker 1 | . . . . 1 Tunneler 2 | 2 . . . . Recycler 1 | 1 . . . . Watcher 3 | . 3 . . . Swarmer 8 | . 2 2 4 . Grunt 12 | . 8 . . 4 Hunter 1 | . . . 1 . Programmer 1 | . . . . 1 Best Kill Streak 4 | 3 3 2 4 3 Combat Bots Only 4 | . 2 2 4 3 Max Kills in Single Turn 2 | 2 1 1 1 1 Gunslinging . | . . . . . Exploded . | . . . . . Melee . | . . . . . Uniques/NPCs Destroyed . | . . . . . Combat | -11 -10 -9 -8 -7 -------- Run | Yrd Mat Mat Mat Fac Hostile Shots Fired 430 | . 50 81 33 266 Missed 155 | . 14 31 8 102 Damage Taken 3374 | . 379 574 293 2128 Core 1047 | . 109 182 46 710 Absorbed by Shields . | . . . . . Redirected to Shielding 46 | . . . 9 37 Core Remaining (%) 75 | 100 56 54 91 . Volleys Fired 111 | 7 48 9 17 30 Largest 2 | 2 2 2 2 2 Hottest 126 | 40 46 46 45 126 Shots Fired 199 | 14 96 16 23 50 Gun 189 | 14 96 16 23 40 Cannon 10 | . . . . 10 Launcher . | . . . . . Special . | . . . . . Kinetic 167 | 14 96 16 23 18 Thermal 22 | . . . . 22 Explosive . | . . . . . Electromagnetic 10 | . . . . 10 Robot Hit Streak 8 | 4 7 8 8 7 Robot Miss Streak 3 | 2 3 2 3 3 Penetration Max . | . . . . . Secondary Targets 2 | . 1 . . 1 Max Gunslinging Chain 1 | . 1 . . 1 Shots Hit Robots 114 | 8 56 9 14 27 Core Hits 56 | 6 24 3 7 16 Critical Kills . | . . . . . Critical Parts Destroyed 1 | . 1 . . . Critical Strikes 2 | . 1 . . 1 Burn 1 | . . . . 1 Destroy 1 | . 1 . . . Melee Attacks 1 | . . . . 1 Impact . | . . . . . Slashing 1 | . . . . 1 Piercing . | . . . . . Sneak Attacks 1 | . . . . 1 Combat Hostiles . | . . . . . Follow-up Attacks . | . . . . . Damage Inflicted 1846 | 96 756 138 201 655 Guns 1453 | 96 627 138 201 391 Cannons 122 | . . . . 122 Explosions 114 | . 114 . . . Melee 106 | . . . . 106 Ramming 51 | . 15 . . 36 Kinetic 1239 | 96 627 138 201 177 Thermal 328 | . 114 . . 214 Explosive . | . . . . . Electromagnetic 122 | . . . . 122 Impact . | . . . . . Slashing 106 | . . . . 106 Piercing . | . . . . . Highest Corruption 3 | . . . . 3 Average Corruption 2 | . . . . 2 Corruption Purged . | . . . . . Corruption Blocked . | . . . . . Effects 11 | . . . . 11 Message Errors 4 | . . . . 4 Matter Fused 1 | . . . . 1 Heat Flow Errors 3 | . . . . 3 Energy Discharges 1 | . . . . 1 Alerts 1 | . . . . 1 Weapon Failures 1 | . . . . 1 Overload Shots . | . . . . . Overflow Damage 48 | . 44 . . 4 Projectiles 4 | . . . . 4 Explosions 44 | . 44 . . . Melee . | . . . . . Knockbacks 1 | . . . . 1 Impact 1 | . . . . 1 Kinetic . | . . . . . Secondary . | . . . . . Self-Inflicted Damage 3 | . . . . 3 Shots . | . . . . . Rammed 2 | . . . . 2 Targets Rammed 19 | . 3 . . 16 Kicked 17 | . 3 . . 14 Crushed . | . . . . . Highest Temperature 394 | . 40 15 8 394 Average Temperature 69 | . 11 15 4 104 Received Heat Transfer 855 | . 159 96 18 582 Siege Activations . | . . . . . Robots Corrupted . | . . . . . Combat Hostiles . | . . . . . Parts Fried . | . . . . . Impact Corruptions . | . . . . . Robots Melted . | . . . . . Combat Hostiles . | . . . . . Parts Melted . | . . . . . Heat Transferred 531 | . 50 . . 481 Parts Sabotaged . | . . . . . Parts Stolen . | . . . . . Parts Stripped . | . . . . . Power Chain Reactions . | . . . . . Alert | -11 -10 -9 -8 -7 ------- Run | Yrd Mat Mat Mat Fac Peak Influence 307 | 15 307 281 212 236 Initial 118 | . 9 81 118 4 Average 89 | 4 100 142 105 65 Maximum Alert Level 1 | . 1 1 1 1 Low Security (%) 89 | 100 89 79 86 92 Level 1 10 | . 10 20 13 7 Level 2 . | . . . . . Level 3 . | . . . . . Level 4 . | . . . . . Level 5 . | . . . . . High Security . | . . . . . Max Security . | . . . . . Squads Dispatched 10 | . 3 1 1 5 Investigation 3 | . 2 . 1 . Extermination 2 | . . . . 2 Reinforcement 5 | . 1 1 . 3 Assault . | . . . . . Garrison . | . . . . . Intercept . | . . . . . Searches Triggered . | . . . . . Construction Impeded . | . . . . . Haulers Reinforced 1 | . . . . 1 Active Scanning Responses . | . . . . . Cargo Convoy Interrupts 1 | . . . . 1 Stealth | -11 -10 -9 -8 -7 --------- Run | Yrd Mat Mat Mat Fac Distress Signals 2 | . 1 1 . . Communications Jammed . | . . . . . Distress Signals . | . . . . . Times Spotted 82 | . 19 23 6 34 Peak Tracking Total 16 | . 3 13 4 16 Tactical Retreats 20 | . 7 4 1 8 Traps | -11 -10 -9 -8 -7 ------- Run | Yrd Mat Mat Mat Fac Traps Triggered 2 | . 2 . . . Indirectly . | . . . . . Trap Hack Attempts . | . . . . . Triggered . | . . . . . Disarmed . | . . . . . Reprogrammed . | . . . . . Reused . | . . . . . Traps Extracted . | . . . . . Installed . | . . . . . Triggered 1 | . . . . 1 Machines | -11 -10 -9 -8 -7 ---------- Run | Yrd Mat Mat Mat Fac Machines Disabled 3 | . 2 . . 1 Max in Single Turn 2 | . 2 . . 1 Machines Repaired . | . . . . . Machines Dismantled . | . . . . . Machines Sabotaged . | . . . . . Overloaded Fab Kills . | . . . . . Hacking | -11 -10 -9 -8 -7 --------- Run | Yrd Mat Mat Mat Fac Machines Accessed 10 | . 8 . 2 . Terminals 7 | . 5 . 2 . Fabricators . | . . . . . Repair Stations 1 | . 1 . . . Recycling Units 2 | . 2 . . . Scanalyzers . | . . . . . Garrison Access . | . . . . . Total Hacks 24 | . 17 . 7 . Successful 14 | . 11 . 3 . Failed 10 | . 6 . 4 . Catastrophic 1 | . 1 . . . Database Lockouts . | . . . . . Manual 10 | . 7 . 3 . Terminals 17 | . 10 . 7 . Fabricators . | . . . . . Repair Stations 2 | . 2 . . . Recycling Units 5 | . 5 . . . Scanalyzers . | . . . . . Garrison Access . | . . . . . Terminal Hacks 5 | . 3 . 2 . Record 2 | . . . 2 . Robot Analysis 1 | . 1 . . . Alert Level 1 | . 1 . . . Zone Layout 1 | . 1 . . . Fabricator Hacks . | . . . . . Repair Station Hacks 1 | . 1 . . . Scan Component 1 | . 1 . . . Recycling Unit Hacks 5 | . 5 . . . Process 1 | . 1 . . . Report Inventory 2 | . 2 . . . Retrieve Matter 1 | . 1 . . . Retrieve Components 1 | . 1 . . . Scanalyzer . | . . . . . Garrison Access Hacks . | . . . . . Unauthorized Hacks 3 | . 2 . 1 . Terminals 3 | . 2 . 1 . Botnet 3 | . 2 . 1 . Fabricators . | . . . . . Repair Stations . | . . . . . Recycling Units . | . . . . . Scanalyzers . | . . . . . Garrison Access . | . . . . . Data Cores Recovered . | . . . . . Used . | . . . . . Hacking Detections 7 | . 6 . 1 . Full Trace Events 2 | . 1 . 1 . Feedback Events . | . . . . . Feedback Blocked . | . . . . . Robot Schematics Acquired . | . . . . . Robots Built . | . . . . . Authchips . | . . . . . Time . | . . . . . Total Robot Build Rating . | . . . . . Part Schematics Acquired . | . . . . . Parts Built . | . . . . . Authchips . | . . . . . Time . | . . . . . Total Part Build Rating . | . . . . . Parts Repaired . | . . . . . Time . | . . . . . Parts Recycled . | . . . . . Recycled Matter 78 | . 78 . . . Retrieved Matter 78 | . 78 . . . Retrieved Components 8 | . 8 . . . Parts Scanalyzed . | . . . . . Part Schematics Acquired . | . . . . . Parts Damaged . | . . . . . Bothacking | -11 -10 -9 -8 -7 ------------ Run | Yrd Mat Mat Mat Fac Used RIF Installer . | . . . . . Robots Hacked . | . . . . . Non-combat . | . . . . . Combat . | . . . . . Robot Hacks Applied . | . . . . . Relay Couplers Released . | . . . . . Fabnet Peak Effective % . | . . . . . Robots Rewired . | . . . . . Allies Hacked . | . . . . . Hacks Repelled . | . . . . . Allies | -11 -10 -9 -8 -7 -------- Run | Yrd Mat Mat Mat Fac Total Allies . | . . . . . Largest Group . | . . . . . Highest-Rated Group . | . . . . . Highest-Rated Ally . | . . . . . Total Orders . | . . . . . Ally Attacks . | . . . . . Total Damage . | . . . . . Kills . | . . . . . Allies Corrupted . | . . . . . Allies Melted . | . . . . . Intel | -11 -10 -9 -8 -7 ------- Run | Yrd Mat Mat Mat Fac Robot Analysis Total 1 | . 1 . . . Derelict Logs Recovered . | . . . . . Drone Launches . | . . . . . Drone Recoveries . | . . . . . Exploration | -11 -10 -9 -8 -7 ------------- Run | Yrd Mat Mat Mat Fac Turns Passed 3295 | 137 1314 241 545 1058 Spaces Moved 2171 | 87 742 217 321 804 Core 265 | 33 . 113 . 119 Treads . | . . . . . Legs 1287 | 54 742 62 104 325 Wheels 75 | . . 42 33 . Hover 544 | . . . 184 360 Flight . | . . . . . Fastest Speed 50 | 50 120 50 60 50 Average Speed 116 | 114 135 93 136 96 Slowest Speed 260 | 150 260 190 190 210 Overloaded Moves . | . . . . . Propulsion Burnouts . | . . . . . Robots Hopped . | . . . . . Cave-ins Triggered . | . . . . . Exploration Rate (%) 34 | 5 92 31 27 17 Regions Visited 4 Branch Regions . Pre-discovered Areas . | . . . . . Known Exits Taken . | . . . . . Unknown Exits Taken 4 | 1 1 1 1 . Scrap Searched . | . . . . . Spaces Dug . | . . . . . Terrain Destroyed 17 | . 17 . . . Melee . | . . . . . Projectile . | . . . . . AOE 17 | . 17 . . . Terrain Rammed . | . . . . . Walls Destroyed . | . . . . . Machines Disabled . | . . . . . Actions | -11 -10 -9 -8 -7 --------- Run | Yrd Mat Mat Mat Fac Total 2769 | 110 977 241 410 1031 Wait 346 | 1 149 5 45 146 Move 2167 | 86 741 216 320 804 Hop . | . . . . . Pick Up 29 | 8 11 1 5 4 Fast Attach 38 | 7 1 2 10 18 Attach 13 | . . 6 2 5 Detach 7 | . . 1 5 1 Swap 14 | . 10 . 2 2 Drop 24 | 1 14 1 4 4 Fire 111 | 7 48 9 17 30 Melee 1 | . . . . 1 Ram 2 | . . . . 2 Kick 17 | . 3 . . 14 Crush . | . . . . . Escape Stasis . | . . . . . Rewire . | . . . . . Trap . | . . . . . Miscellaneous . | . . . . . Route ------- -11/Scrapyard -10/Materials (discovered 4 exits: *Mat x3 / [*Min]) -9/Materials -8/Materials -7/Factory History --------- Turn | Location | Event 4 | -11/Scrapyard | Discovered new exit (range 15) 138 | -11/Scrapyard | Entered Materials 310 | -10/Materials | Build established: Mutant 406 | -10/Materials | Discovered new exit (range 15) 512 | -10/Materials | Discovered new exit (range 13) 1049 | -10/Materials | Discovered new exit (range 3) 1429 | -10/Materials | Discovered new exit (range 10) 1452 | -10/Materials | Entered another Materials area 1452 | -9/Materials | Evolved 2 slots: Utility x2 1590 | -9/Materials | Released all parts (4) 1621 | -9/Materials | Lost 3 parts (1p1n1w) 1676 | -9/Materials | Discovered new exit (range 16) 1693 | -9/Materials | Entered another Materials area 1693 | -8/Materials | Evolved 2 slots: Propulsion x2 2135 | -8/Materials | Discovered new exit (range 16) 2238 | -8/Materials | Entered Factory 2238 | -7/Factory | Evolved 2 slots: Power x1, Utility x1 2599 | -7/Factory | Lost 3 parts (1p1n1u) 2760 | -7/Factory | Released all parts (9) 3001 | -7/Factory | Cargo convoy interrupted 3204 | -7/Factory | Core integrity fell below 50% 3244 | -7/Factory | Lost 7 parts (1p2n2u2w) 3271 | -7/Factory | Core integrity fell below 20% 3274 | -7/Factory | Released all parts (3) 3296 | -7/Factory | Destroyed by P-60 Hacker with Shock Rifle Last Messages --------------- 03234_ K-01 Serf destroyed. 03237_ Acquired 12 matter. 03238_ ALERT: Rogue bot located, Programmers report to Factory Zone 3S. 03244_ Slug penetrates Wall. 03264_ Aluminum Leg destroyed. 03264_ Slug penetrates Wall. 03267_ Greatsword destroyed. 03267_ Penetrated by Slug. 03268_ Aluminum Leg destroyed. 03270_ Penetrated by Slug. 03274_ Released Mic. Nuclear Core. 03274_ Released Imp. Terrain Scanner. 03274_ Released System Shield. 03275_ O-24 Administrator: "IFF HANDSHAKE FAILED. SECURING TERMINAL." 03279_ IHGWU6RXZP4NB MKKYY2OYTIARXM 03279_ ALERT: Hostiles spotted, dispatching reinforcements to Terminal F005. 03292_ Slammed into P-60 Hacker. Map ----- +----------------------------------------------------+ | ?????????????????????????????????????????????????? | | ?????????????????????????????????????????????????? | | ?????????????????????????????????????????????????? | | ?????????????????????????????????????????????????? | | ?????????????????????????????????????????????????? | | ?????????????????????????????????????????????????? | | ?????????????????????????????????????????????????? | | ?????????????????????????????????????????????????? | | ?????????????????????????????????????????????????? | | ?????????????????????????????????????????????????? | | ?????????????????????????????????????????????????? | | ?????????????????????????????????????????????????? | | ?????????????????????????????????????????????????? | | ?????????????????????????????????????????????????? | | ??????????????????????###########????????????????? | | ??????????????????????# #????????????????? | | ??????????????????????# #????????????????? | | ??????????????????????# #????????????????? | | ?????????" ????????# #????????????????? | | ?????????" ????????###p#######????????????????? | | ????????"" #?????????# #??????????????????????? | | ????????? ?????????# ###########????????????? | | ?????????? ?????????# # #????????????? | | ???????????# ?????????# # """ #????????????? | | ???????????# ?????????# # ""R" #????????????? | | ??????????## ####+#####@# "" " #????????????? | | ??????????+ x + #????????????? | | ?????????????# ### # #????????????? | | ?????????????# #?# #! #????????????? | | ??? ?????????# #?#k# #????????????? | | ?????????????# #?#/###########????????????? | | ?????????????# #? ??????????????????????? | | ?????????????# #? ??????????????????????? | | ?????????????# #? ??????????????????????? | | ?????######### #? ??????????????????????? | | #? ??????????????????????? | | ?????#########+## #? ??????????????????????? | | ????????# ! # #? ??????????????????????? | | ???????## ## ##? ??????????????????????? | | #???????# ]* ## #?? ??????????????????????? | | ????????# ! ## #?? ??????????????????????? | | ????????# ## #???????????????????????????? | | ????????####"##### ###?????????????????????????? | | ???????????# #?? ###???????????????????????? | | ??????????## ### ?????????????????????? | | ??????????# ?????????????????????? | | ########### ?????????????????????? | | # # ?????????????????????? | | # # ## ??????????????????????? | | # # #? ###+??????????????????????? | +----------------------------------------------------+ Best States ------------- Heat Dissipation 48 Energy Generation 24 Energy Capacity 335 Matter Stores 300 Matter Capacity 300 Sight Range 16 Robot Scan Range 14 Terrain Scan Range 16 Terrain Scan Density 10 ECM Strength 1 Armor Coverage 150 Core Shielding 20 Evasion (%) 55 Targeting Accuracy 5 Target Analysis 5 Particle Charging 15 Defensive Hacking 10 Item Schematics ----------------- None Robot Schematics ------------------ None Fabricated ------------ Nothing Alien Tech Used ----------------- None Achievements -------------- None Challenges ------------ None Game ------ Seed GyrokineticConstructBooster Manual? 0 Play Time 00:47:25 Cumulative 3.9 hours Start 2024.07.11 @ 04:50:38 End 2024.07.12 @ 02:29:02 Sessions 3 Manual Loads 0 Difficulty Rogue Special Mode None Game No. 6 Rogue 5 Adventurer 0 Explorer 1 Win Type - Total 0 Types 0/0/0/0/0/0/0/0/0 Lore% 6 Gallery% 9 Achievement% 9 Wizard Run 0 Options --------- Layout 1 ASCII 0 Keyboard 1 Movement Numpad Keybinds 0 Fullscreen 1 Font 24/Smallcaps Map View 50x35 Zoom Use 0% Tactical HUD 1 Map Filters NONE Filters NONE Steam 1 RUN: 083afc1a-f7af-46b5-8088-d110894ba660